[Event "WSTCC-65 2020"]
[Site "Prague"]
[Date "2020.03.12"]
[Round "7.29"]
[White "Rooze, Jan"]
[Black "Watzka, Horst"]
[Result "1/2-1/2"]
[ECO "C49"]
[WhiteElo "2245"]
[BlackElo "2166"]
[Annotator "ChessBase"]
[PlyCount "91"]
[EventDate "2020.03.06"]
[EventType "team-tourn"]
[EventCountry "CZE"]
[SourceTitle "playchess.com"]
[Source "ChessBase"]
[SourceQuality "1"]
[TimeControl "40/5400+30:1800+30"]

1. e4 {[%emt 0:00:00]} e5 {[%emt 0:00:20]} 2. Nf3 {[%emt 0:00:00]} Nc6 {[%emt 0:00:08]} 3. Nc3 {[%emt 0:00:00]} Nf6 {[%emt 0:01:31]} 4. Bb5 {[%emt 0:01:06]} Bb4 {[%emt 0:03:26]} 5. O-O {[%emt 0:01:47]} Bxc3 {[%emt 0:02:43]} 6. bxc3 {[%emt 0:03:44]} O-O {[%emt 0:01:13]} 7. d3 {[%emt 0:00:45]} d6 {[%emt 0:00:41]} 8. Re1 {[%emt 0:11:06]} Bd7 {[%emt 0:02:49]} 9. Rb1 {[%emt 0:00:41]} Qe7 {[%emt 0:04:15]} 10. d4 {[%emt 0:07:06]} b6 {[%emt 0:09:07]} 11. Bg5 {[%emt 0:01:49]} Nb8 {[%emt 0:21:55]} 12. Bd3 {[%emt 0:02:48]} Nc6 {[%emt 0:02:05]} 13. h3 {[%emt 0:11:31]} h6 {[%emt 0:11:51]} 14. Bh4 {[%emt 0:05:27]} Rfe8 {[%emt 0:03:31]} 15. Re3 {[%emt 0:05:40]} Kh8 {[%emt 0:05:16]} 16. Bc4 {[%emt 0:07:01]} Na5 {[%emt 0:03:45]} 17. Bf1 {[%emt 0:06:21]} Bc6 {[%emt 0:00:51]} 18. Bd3 {[%emt 0:04:33]} Rg8 {[%emt 0:06:11]} 19. Bg3 {[%emt 0:04:02]} Nd7 {[%emt 0:00:31]} 20. Qd2 {[%emt 0:01:33]} g5 {[%emt 0:02:17]} 21. Re2 {[%emt 0:01:31]} f6 {[%emt 0:00:19]} 22. Nh2 {[%emt 0:01:21]} Nf8 {[%emt 0:00:24]} 23. Ng4 {[%emt 0:00:15]} Kg7 {[%emt 0:00:42]} 24. Ne3 {[%emt 0:00:41]} Bd7 {[%emt 0:01:59]} 25. Nf5+ {[%emt 0:01:20]} Bxf5 {[%emt 0:00:09]} 26. exf5 {[%emt 0:00:07]} Qf7 {[%emt 0:00:42]} 27. Ree1 {[%emt 0:07:51]} Nd7 {[%emt 0:00:30]} 28. Qe2 {[%emt 0:02:37]} Rge8 {[%emt 0:01:36]} 29. Qf3 {[%emt 0:00:20]} Rac8 {[%emt 0:03:30]} 30. Be4 {[%emt 0:02:21]} c6 {[%emt 0:00:47]} 31. d5 {[%emt 0:00:42]} Nc5 {[%emt 0:00:48]} 32. dxc6 {[%emt 0:03:34]} Nxe4 {[%emt 0:00:09]} 33. Rxe4 {[%emt 0:00:49]} Rxc6 {[%emt 0:00:16]} 34. Rd1 {[%emt 0:00:32]} Rec8 {[%emt 0:00:20]} 35. Re3 {[%emt 0:01:30]} Nc4 {[%emt 0:01:56]} 36. Re2 {[%emt 0:00:58]} b5 {[%emt 0:00:34]} 37. h4 {[%emt 0:00:20]} Nb6 {[%emt 0:01:48]} 38. hxg5 {[%emt 0:00:26]} hxg5 {[%emt 0:00:06]} 39. Re3 {[%emt 0:00:48]} Qxa2 40. Red3 {[%emt 0:00:00]} Qf7 {[%emt 0:00:00]} 41. Rxd6 {[%emt 0:00:24]} Rxc3 {[%emt 0:04:20]} 42. Qe2 {[%emt 0:00:15]} Rxc2 {[%emt 0:01:21]} 43. Qxb5 {[%emt 0:00:24]} Rc1 {[%emt 0:00:15]} 44. Qf1 {[%emt 0:02:34]} Rxd1 {[%emt 0:03:14]} 45. Qxd1 {[%emt 0:01:52]} Qc4 46. Bxe5 1/2-1/2

[Event "WSTCC-65 2020"]
[Site "Prague"]
[Date "2020.03.12"]
[Round "7.30"]
[White "Kratschmer, Heinz"]
[Black "Goormachtigh, Johan"]
[Result "1/2-1/2"]
[ECO "A48"]
[WhiteElo "2037"]
[BlackElo "2181"]
[Annotator "ChessBase"]
[PlyCount "70"]
[EventDate "2020.03.06"]
[EventType "team-tourn"]
[EventCountry "CZE"]
[SourceTitle "playchess.com"]
[Source "ChessBase"]
[SourceQuality "1"]
[TimeControl "40/5400+30:1800+30"]

1. d4 {[%emt 0:00:00]} Nf6 {[%emt 0:00:00]} 2. Nf3 {[%emt 0:00:00]} g6 {[%emt 0:00:09]} 3. Nc3 {[%emt 0:00:00]} d5 {[%emt 0:00:47]} 4. Bf4 {[%emt 0:00:00]} Bg7 {[%emt 0:00:18]} 5. e3 {[%emt 0:00:14]} O-O {[%emt 0:01:07]} 6. Be2 {[%emt 0:00:11]} c5 {[%emt 0:01:56]} 7. Ne5 {[%emt 0:00:15]} Nc6 {[%emt 0:04:27]} 8. h4 {[%emt 0:01:35]} cxd4 {[%emt 0:02:52]} 9. exd4 {[%emt 0:00:09]} Nd7 {[%emt 0:11:40]} 10. Nf3 {[%emt 0:09:00]} Qb6 {[%emt 0:27:31]} 11. Na4 {[%emt 0:01:52]} Qa5+ {[%emt 0:00:48]} 12. c3 {[%emt 0:00:10]} e5 {[%emt 0:00:32]} 13. b4 {[%emt 0:01:46]} Qd8 {[%emt 0:01:55]} 14. Be3 {[%emt 0:07:10]} exd4 {[%emt 0:07:56]} 15. Nxd4 {[%emt 0:01:03]} Nde5 {[%emt 0:00:28]} 16. Rc1 {[%emt 0:08:12]} Re8 {[%emt 0:00:31]} 17. Kf1 {[%emt 0:05:56]} h5 {[%emt 0:00:43]} 18. a3 {[%emt 0:02:00]} Nxd4 {[%emt 0:04:02]} 19. Bxd4 {[%emt 0:00:24]} Bf5 {[%emt 0:00:57]} 20. Nc5 {[%emt 0:02:21]} b6 {[%emt 0:04:22]} 21. Nd3 {[%emt 0:02:58]} Nxd3 {[%emt 0:03:57]} 22. Bxd3 {[%emt 0:00:14]} Bxd4 {[%emt 0:00:09]} 23. cxd4 {[%emt 0:06:40]} Bxd3+ {[%emt 0:00:17]} 24. Qxd3 {[%emt 0:00:18]} Rc8 {[%emt 0:00:11]} 25. Rxc8 {[%emt 0:12:42]} Qxc8 {[%emt 0:00:03]} 26. g3 {[%emt 0:00:15]} Qc4 {[%emt 0:09:10]} 27. Qxc4 {[%emt 0:00:02]} dxc4 {[%emt 0:00:04]} 28. Kg2 {[%emt 0:00:11]} Re4 {[%emt 0:00:07]} 29. Rd1 {[%emt 0:00:11]} Kf8 {[%emt 0:01:17]} 30. b5 {[%emt 0:04:42]} Ke7 {[%emt 0:00:35]} 31. f3 {[%emt 0:05:48]} Re2+ {[%emt 0:00:29]} 32. Kf1 {[%emt 0:00:02]} Re3 {[%emt 0:00:26]} 33. Re1 {[%emt 0:00:18]} Re6 {[%emt 0:04:05]} 34. Rc1 {[%emt 0:08:35]} Re3 {[%emt 0:00:16]} 35. Re1 {[%emt 0:00:01]} Re6 {[%emt 0:00:25]} 1/2-1/2

[Event "WSTCC-65 2020"]
[Site "Prague"]
[Date "2020.03.12"]
[Round "7.31"]
[White "Van Herck, Marcel"]
[Black "Pitzl, Konstantinos"]
[Result "1/2-1/2"]
[ECO "B06"]
[WhiteElo "2056"]
[BlackElo "2023"]
[Annotator "ChessBase"]
[PlyCount "66"]
[EventDate "2020.03.06"]
[EventType "team-tourn"]
[EventCountry "CZE"]
[SourceTitle "playchess.com"]
[Source "ChessBase"]
[SourceQuality "1"]
[TimeControl "40/5400+30:1800+30"]

1. e4 {[%emt 0:00:00]} g6 {[%emt 0:00:00]} 2. d4 {[%emt 0:00:07]} Bg7 {[%emt 0:00:00]} 3. Nf3 {[%emt 0:02:16]} d6 {[%emt 0:00:03]} 4. Nc3 {[%emt 0:00:43]} a6 {[%emt 0:02:58]} 5. a4 {[%emt 0:06:54]} a5 {[%emt 0:02:14]} 6. Be3 {[%emt 0:03:16]} Nf6 {[%emt 0:00:26]} 7. Be2 {[%emt 0:03:03]} O-O {[%emt 0:01:45]} 8. Qd2 {[%emt 0:01:27]} Ng4 {[%emt 0:07:27]} 9. Bg5 {[%emt 0:02:33]} h6 {[%emt 0:00:41]} 10. Bh4 {[%emt 0:01:05]} Na6 {[%emt 0:01:53]} 11. h3 {[%emt 0:10:10]} Nf6 {[%emt 0:00:12]} 12. Rd1 {[%emt 0:04:39]} c6 {[%emt 0:02:37]} 13. e5 {[%emt 0:05:38]} Nd5 {[%emt 0:00:11]} 14. Nxd5 {[%emt 0:10:37]} cxd5 {[%emt 0:00:06]} 15. Bg3 {[%emt 0:00:18]} dxe5 {[%emt 0:10:40]} 16. Bxe5 {[%emt 0:00:48]} Nb4 {[%emt 0:00:30]} 17. Bxg7 {[%emt 0:02:35]} Kxg7 {[%emt 0:00:09]} 18. c3 {[%emt 0:00:05]} Nc6 {[%emt 0:00:06]} 19. Bb5 {[%emt 0:00:26]} Na7 {[%emt 0:02:59]} 20. Bd3 {[%emt 0:00:55]} Nc6 {[%emt 0:00:07]} 21. O-O {[%emt 0:00:14]} Qc7 {[%emt 0:04:07]} 22. Rfe1 {[%emt 0:00:23]} Bd7 {[%emt 0:03:55]} 23. Ra1 {[%emt 0:10:15]} Rfe8 {[%emt 0:06:05]} 24. Bb5 {[%emt 0:06:13]} Nb8 {[%emt 0:09:02]} 25. Bd3 {[%emt 0:01:57]} Nc6 {[%emt 0:00:11]} 26. Re3 {[%emt 0:00:40]} e5 {[%emt 0:00:45]} 27. dxe5 {[%emt 0:01:04]} Nxe5 {[%emt 0:00:06]} 28. Nxe5 {[%emt 0:03:37]} Rxe5 {[%emt 0:04:35]} 29. Rxe5 {[%emt 0:00:07]} Qxe5 {[%emt 0:00:07]} 30. Re1 {[%emt 0:00:09]} Qf6 {[%emt 0:00:25]} 31. Bb5 {[%emt 0:04:17]} Bc6 {[%emt 0:00:36]} 32. Qd3 {[%emt 0:01:13]} Rd8 {[%emt 0:18:11]} 33. Qd4 {[%emt 0:04:58]} Qxd4 {[%emt 0:00:14]} 1/2-1/2

[Event "WSTCC-65 2020"]
[Site "Prague"]
[Date "2020.03.12"]
[Round "7.32"]
[White "Nickl, Klaus"]
[Black "Schrickx, Frank"]
[Result "1-0"]
[ECO "D00"]
[WhiteElo "1946"]
[BlackElo "1826"]
[Annotator "ChessBase"]
[PlyCount "65"]
[EventDate "2020.03.06"]
[EventType "team-tourn"]
[EventCountry "CZE"]
[SourceTitle "playchess.com"]
[Source "ChessBase"]
[SourceQuality "1"]
[TimeControl "40/5400+30:1800+30"]

1. d4 {[%emt 0:00:00]} d5 {[%emt 0:00:00]} 2. Bf4 {[%emt 0:00:00]} Nf6 {[%emt 0:00:18]} 3. e3 {[%emt 0:00:00]} e6 {[%emt 0:01:45]} 4. Nf3 {[%emt 0:00:26]} c5 {[%emt 0:01:18]} 5. c3 {[%emt 0:00:12]} Nc6 {[%emt 0:01:05]} 6. Nbd2 {[%emt 0:00:51]} Be7 {[%emt 0:00:57]} 7. Bd3 {[%emt 0:00:32]} Nh5 {[%emt 0:05:22]} 8. Bg3 {[%emt 0:00:24]} g6 {[%emt 0:02:00]} 9. O-O {[%emt 0:06:47]} Nxg3 {[%emt 0:00:54]} 10. hxg3 {[%emt 0:00:12]} Bd7 {[%emt 0:01:47]} 11. a3 {[%emt 0:06:27]} a5 {[%emt 0:06:18]} 12. dxc5 {[%emt 0:06:11]} Bxc5 {[%emt 0:00:11]} 13. b4 {[%emt 0:00:09]} axb4 {[%emt 0:04:58]} 14. axb4 {[%emt 0:01:11]} Bd6 {[%emt 0:01:08]} 15. e4 {[%emt 0:12:28]} O-O {[%emt 0:08:59]} 16. Qb3 {[%emt 0:04:07]} dxe4 {[%emt 0:06:56]} 17. Nxe4 {[%emt 0:01:18]} Qc7 {[%emt 0:11:52]} 18. Rxa8 {[%emt 0:05:16]} Rxa8 {[%emt 0:00:02]} 19. Nxd6 {[%emt 0:00:15]} Qxd6 {[%emt 0:00:19]} 20. Rd1 {[%emt 0:00:12]} Qc7 {[%emt 0:03:05]} 21. Qc4 {[%emt 0:05:27]} Qb8 {[%emt 0:04:19]} 22. Qh4 {[%emt 0:05:48]} Ne5 {[%emt 0:09:20]} 23. Ng5 {[%emt 0:15:04]} h5 {[%emt 0:00:20]} 24. Be2 {[%emt 0:03:41]} Be8 {[%emt 0:05:24]} 25. g4 {[%emt 0:07:47]} Ra2 {[%emt 0:04:41]} 26. Re1 {[%emt 0:05:59]} Rxe2 {[%emt 0:01:38]} 27. Rxe2 {[%emt 0:00:24]} Nxg4 {[%emt 0:00:07]} 28. Ne4 {[%emt 0:01:45]} Bb5 {[%emt 0:01:30]} 29. Rd2 {[%emt 0:00:31]} Qf4 {[%emt 0:01:20]} 30. f3 {[%emt 0:02:27]} f5 {[%emt 0:05:00]} 31. Rd8+ {[%emt 0:04:16]} Kf7 {[%emt 0:04:13]} 32. Nd6+ {[%emt 0:00:18]} Kg7 {[%emt 0:00:26]} 33. Qe7+ {[%emt 0:00:36] Kf7 Ne4+ Kg8 Qh4+ Qe3+ Rd2} 1-0

[Event "WSTCC-65 2020"]
[Site "Prague"]
[Date "2020.03.12"]
[Round "7.33"]
[White "Sejkora, Vlastimil"]
[Black "Jamieson, Peter M"]
[Result "0-1"]
[ECO "A42"]
[WhiteElo "2149"]
[BlackElo "2220"]
[Annotator "ChessBase"]
[PlyCount "76"]
[EventDate "2020.03.06"]
[EventType "team-tourn"]
[EventCountry "CZE"]
[SourceTitle "playchess.com"]
[Source "ChessBase"]
[SourceQuality "1"]
[TimeControl "40/5400+30:1800+30"]

1. e4 {[%emt 0:00:00]} g6 {[%emt 0:00:00]} 2. d4 {[%emt 0:00:00]} Bg7 {[%emt 0:00:03]} 3. c4 {[%emt 0:00:00]} d6 {[%emt 0:00:14]} 4. Nc3 {[%emt 0:00:00]} Nc6 {[%emt 0:00:25]} 5. Be3 {[%emt 0:00:03]} e5 {[%emt 0:00:45]} 6. d5 {[%emt 0:00:34]} Nce7 {[%emt 0:00:48]} 7. Bd3 {[%emt 0:08:51]} f5 {[%emt 0:01:34]} 8. exf5 {[%emt 0:00:22]} Nxf5 {[%emt 0:00:19]} 9. Bxf5 {[%emt 0:00:09]} Bxf5 {[%emt 0:00:19]} 10. Nf3 {[%emt 0:00:14]} Nf6 {[%emt 0:00:56]} 11. O-O {[%emt 0:05:06]} O-O {[%emt 0:01:15]} 12. h3 {[%emt 0:02:18]} Qe7 {[%emt 0:07:28]} 13. Qe2 {[%emt 0:00:36]} c5 {[%emt 0:01:09]} 14. Nd2 {[%emt 0:03:12]} h6 {[%emt 0:13:06]} 15. g4 {[%emt 0:00:54]} Bd7 {[%emt 0:01:22]} 16. Nde4 {[%emt 0:03:16]} Kh7 {[%emt 0:04:06]} 17. Kg2 {[%emt 0:00:41]} Rf7 {[%emt 0:00:40]} 18. f3 {[%emt 0:03:55]} Raf8 {[%emt 0:03:26]} 19. Nxf6+ {[%emt 0:04:03]} Bxf6 {[%emt 0:00:35]} 20. Ne4 {[%emt 0:00:01]} Bh4 {[%emt 0:04:00]} 21. Qd2 {[%emt 0:05:39]} g5 {[%emt 0:02:02]} 22. b4 {[%emt 0:06:53]} b6 {[%emt 0:01:04]} 23. a4 {[%emt 0:00:09]} Rb8 {[%emt 0:03:05]} 24. b5 {[%emt 0:07:32]} Rff8 {[%emt 0:01:44]} 25. a5 {[%emt 0:00:35]} Be8 {[%emt 0:01:04]} 26. axb6 {[%emt 0:05:20]} axb6 {[%emt 0:00:03]} 27. Ra6 {[%emt 0:00:08]} Bg6 {[%emt 0:00:46]} 28. Qd3 {[%emt 0:18:39]} Kh8 {[%emt 0:09:35]} 29. Bf2 {[%emt 0:03:40]} Bxf2 {[%emt 0:01:52]} 30. Rxf2 {[%emt 0:00:13]} Rf4 {[%emt 0:01:45]} 31. Qe2 {[%emt 0:02:28]} Rbf8 {[%emt 0:03:40]} 32. Ng3 {[%emt 0:02:13]} e4 {[%emt 0:01:21]} 33. Qb2+ {[%emt 0:00:16]} Kg8 {[%emt 0:01:56]} 34. Qa1 {[%emt 0:02:45]} Rxf3 {[%emt 0:06:45]} 35. Re2 {[%emt 0:00:02]} Qf7 {[%emt 0:05:16]} 36. Ra7 {[%emt 0:00:15]} Rxg3+ {[%emt 0:00:15]} 37. Kh2 {[%emt 0:00:01]} Rxh3+ {[%emt 0:00:52]} 38. Kg1 {[%emt 0:03:28]} Qf6 {[%emt 0:02:30]} 0-1

[Event "WSTCC-65 2020"]
[Site "Prague"]
[Date "2020.03.12"]
[Round "7.34"]
[White "White, Alastair F"]
[Black "Janda, Zdenek"]
[Result "1-0"]
[ECO "B06"]
[WhiteElo "2052"]
[BlackElo "2065"]
[Annotator "ChessBase"]
[PlyCount "59"]
[EventDate "2020.03.06"]
[EventType "team-tourn"]
[EventCountry "CZE"]
[SourceTitle "playchess.com"]
[Source "ChessBase"]
[SourceQuality "1"]
[TimeControl "40/5400+30:1800+30"]

1. e4 {[%emt 0:00:00]} g6 {[%emt 0:00:00]} 2. d4 {[%emt 0:00:01]} Bg7 {[%emt 0:00:00]} 3. Nc3 {[%emt 0:00:10]} d6 {[%emt 0:00:11]} 4. Be3 {[%emt 0:01:48]} c6 {[%emt 0:02:16]} 5. a4 {[%emt 0:00:14]} Nd7 {[%emt 0:01:03]} 6. h3 {[%emt 0:00:40]} e5 {[%emt 0:03:26]} 7. Nge2 {[%emt 0:01:39]} Ne7 {[%emt 0:00:27]} 8. g4 {[%emt 0:00:15]} O-O {[%emt 0:09:31]} 9. Qd2 {[%emt 0:08:44]} d5 {[%emt 0:00:39]} 10. Bg2 {[%emt 0:05:35]} c5 {[%emt 0:03:15]} 11. Nxd5 {[%emt 0:03:13]} Nxd5 {[%emt 0:01:15]} 12. exd5 {[%emt 0:00:11]} cxd4 {[%emt 0:02:03]} 13. Bh6 {[%emt 0:00:34]} Nf6 {[%emt 0:00:31]} 14. Bxg7 {[%emt 0:00:19]} Kxg7 {[%emt 0:00:02]} 15. c4 {[%emt 0:01:06]} Rh8 {[%emt 0:05:38]} 16. O-O {[%emt 0:02:51]} h5 {[%emt 0:02:00]} 17. g5 {[%emt 0:00:21]} Ne8 {[%emt 0:02:22]} 18. f4 {[%emt 0:02:00]} d3 {[%emt 0:05:05]} 19. Qxd3 {[%emt 0:12:16]} exf4 {[%emt 0:01:36]} 20. Qd4+ {[%emt 0:00:47]} Kh7 {[%emt 0:01:00]} 21. Nxf4 {[%emt 0:03:57]} Nd6 {[%emt 0:02:37]} 22. Nxh5 {[%emt 0:11:16]} gxh5 {[%emt 0:01:59]} 23. Rf6 {[%emt 0:00:41]} Kg8 {[%emt 0:06:22]} 24. g6 {[%emt 0:02:33]} Rh6 {[%emt 0:03:02]} 25. gxf7+ {[%emt 0:13:32]} Nxf7 {[%emt 0:00:17]} 26. Raf1 {[%emt 0:00:49]} Rxf6 {[%emt 0:21:24]} 27. Rxf6 {[%emt 0:00:16]} Bd7 {[%emt 0:00:12]} 28. d6 {[%emt 0:02:26]} Qf8 {[%emt 0:18:48]} 29. Rg6+ {[%emt 0:01:12]} Kh7 {[%emt 0:00:10]} 30. Be4 {[%emt 0:00:32]} 1-0

[Event "WSTCC-65 2020"]
[Site "Prague"]
[Date "2020.03.12"]
[Round "7.35"]
[White "Mlynek, Petr"]
[Black "Levy, David N L"]
[Result "1/2-1/2"]
[ECO "A59"]
[WhiteElo "2053"]
[BlackElo "2310"]
[Annotator "ChessBase"]
[PlyCount "56"]
[EventDate "2020.03.06"]
[EventType "team-tourn"]
[EventCountry "CZE"]
[SourceTitle "playchess.com"]
[Source "ChessBase"]
[SourceQuality "1"]
[TimeControl "40/5400+30:1800+30"]

1. d4 {[%emt 0:01:34]} Nf6 {[%emt 0:01:33]} 2. c4 {[%emt 0:00:12]} c5 {[%emt 0:00:05]} 3. d5 {[%emt 0:00:23]} b5 {[%emt 0:00:06]} 4. cxb5 {[%emt 0:00:18]} a6 {[%emt 0:00:06]} 5. bxa6 {[%emt 0:00:14]} g6 {[%emt 0:00:07]} 6. Nc3 {[%emt 0:00:17]} Bxa6 {[%emt 0:00:17]} 7. Nf3 {[%emt 0:00:28]} Bg7 {[%emt 0:00:50]} 8. e4 {[%emt 0:00:34]} Bxf1 {[%emt 0:00:08]} 9. Kxf1 {[%emt 0:00:06]} d6 {[%emt 0:00:14]} 10. g3 {[%emt 0:00:19]} O-O {[%emt 0:00:14]} 11. Kg2 {[%emt 0:00:08]} Nbd7 {[%emt 0:00:24]} 12. a4 {[%emt 0:00:40]} Qb6 {[%emt 0:00:20]} 13. Qe2 {[%emt 0:01:12]} Rfb8 {[%emt 0:01:56]} 14. Nb5 {[%emt 0:04:20]} Qb7 {[%emt 0:06:19]} 15. Bd2 {[%emt 0:06:04]} Nb6 {[%emt 0:10:59]} 16. b3 {[%emt 0:03:31]} c4 {[%emt 0:02:40]} 17. a5 {[%emt 0:14:49]} Nbxd5 {[%emt 0:03:04]} 18. exd5 {[%emt 0:03:27]} Qxb5 {[%emt 0:02:02]} 19. bxc4 {[%emt 0:00:27]} Qa6 {[%emt 0:03:24]} 20. Rab1 {[%emt 0:01:45]} Nxd5 {[%emt 0:05:34]} 21. Qe4 {[%emt 0:01:45]} Rxb1 {[%emt 0:01:46]} 22. Rxb1 {[%emt 0:00:51]} Nc3 {[%emt 0:04:36]} 23. Bxc3 {[%emt 0:00:53]} Bxc3 {[%emt 0:00:07]} 24. Qxe7 {[%emt 0:03:34]} Bxa5 {[%emt 0:05:37]} 25. Rb7 {[%emt 0:05:43]} Qxc4 {[%emt 0:01:19]} 26. Qxd6 {[%emt 0:00:46]} Rd8 {[%emt 0:03:47]} 27. Rb8 {[%emt 0:01:36]} Qc7 {[%emt 0:00:50]} 28. Rxd8+ {[%emt 0:01:48]} Qxd8 {[%emt 0:00:08]} 1/2-1/2

[Event "WSTCC-65 2020"]
[Site "Prague"]
[Date "2020.03.12"]
[Round "7.36"]
[White "McKerracher, Douglas"]
[Black "Fencl, Vaclav"]
[Result "1/2-1/2"]
[ECO "C41"]
[WhiteElo "1852"]
[BlackElo "1857"]
[Annotator "NA"]
[PlyCount "50"]
[EventDate "2020.03.06"]
[EventType "team-tourn"]
[EventCountry "CZE"]
[SourceTitle "playchess.com"]
[Source "ChessBase"]
[SourceQuality "1"]
[TimeControl "40/5400+30:1800+30"]

1. e4 {[%emt 0:00:00]} e5 {[%emt 0:00:00]} 2. Nf3 {[%emt 0:00:00]} d6 {[%emt 0:00:00]} 3. d4 {[%emt 0:00:21]} Nf6 {[%emt 0:00:00]} 4. Nc3 {[%emt 0:00:31]} Nbd7 {[%emt 0:00:08]} 5. Bc4 {[%emt 0:00:39]} Be7 {[%emt 0:00:15]} 6. O-O {[%emt 0:00:50]} O-O {[%emt 0:00:48]} 7. Re1 {[%emt 0:00:52]} c6 {[%emt 0:00:15]} 8. a4 {[%emt 0:00:37]} Qc7 {[%emt 0:00:36]} 9. a5 {[%emt 0:00:56]} Rb8 {[%emt 0:02:07] 9...h6 is the hot move.} 10. h3 {[%emt 0:03:43] C41: Philidor Defence.} b5 {[%emt 0:00:35]} 11. axb6 {[%emt 0:00:21]} axb6 {[%emt 0:00:24] [#]} 12. Be3 $146 {[%emt 0:00:52]} ({Predecessor:} 12. b3 b5 13. Bf1 Re8 14. Qd3 Bf8 15. Bg5 b4 16. Na4 d5 17. Nxe5 dxe4 18. Qd2 Nxe5 19. dxe5 {½-½ (45) Li,H (2193)-Wall,G (2330) Dublin 2019}) 12... b5 {[%emt 0:01:21]} 13. Bd3 {[%emt 0:05:49]} Re8 {[%emt 0:10:31]} 14. Qe2 {[%emt 0:04:59]} Bf8 {[%emt 0:04:01]} 15. dxe5 {[%emt 0:05:07]} Nxe5 {[%emt 0:03:15]} 16. Nxe5 {[%emt 0:01:42]} dxe5 {[%emt 0:00:06]} 17. f3 {[%emt 0:04:05]} Be6 {[%emt 0:00:49]} 18. Ra7 {[%emt 0:03:29]} Rb7 {[%emt 0:01:53]} 19. Rea1 $11 {[%emt 0:01:02]} Reb8 {[%emt 0:00:55]} 20. Qf2 {[%emt 0:03:24]} Rxa7 {[%emt 0:06:39]} 21. Rxa7 {[%emt 0:00:12]} Rb7 {[%emt 0:00:17]} 22. Rxb7 {[%emt 0:05:41]} Qxb7 {[%emt 0:00:04]} 23. b3 {[%emt 0:06:51]} Nd7 {[%emt 0:00:24]} 24. Qe2 {[%emt 0:07:25]} Qa8 {[%emt 0:04:01]} 25. Kh2 {[%emt 0:01:57]} Nc5 1/2-1/2

[Event "WSTCC-65 2020"]
[Site "Prague"]
[Date "2020.03.12"]
[Round "7.39"]
[White "Jacek, Miloslav"]
[Black "Moen, Ole Christian"]
[Result "0-1"]
[ECO "C55"]
[WhiteElo "1962"]
[BlackElo "2192"]
[Annotator "ChessBase"]
[PlyCount "82"]
[EventDate "2020.03.06"]
[EventType "team-tourn"]
[EventCountry "CZE"]
[SourceTitle "playchess.com"]
[Source "ChessBase"]
[SourceQuality "1"]
[TimeControl "40/5400+30:1800+30"]

1. e4 {[%emt 0:00:00]} e5 {[%emt 0:00:52]} 2. Nf3 {[%emt 0:00:00]} Nc6 {[%emt 0:00:08]} 3. d4 {[%emt 0:00:00]} exd4 {[%emt 0:00:08]} 4. Bc4 {[%emt 0:00:05]} Nf6 {[%emt 0:01:10]} 5. e5 {[%emt 0:00:22]} Ne4 {[%emt 0:00:20]} 6. O-O {[%emt 0:01:44]} d5 {[%emt 0:00:25]} 7. Bb5 {[%emt 0:00:41]} Bd7 {[%emt 0:03:44]} 8. Bxc6 {[%emt 0:00:36]} bxc6 {[%emt 0:00:22]} 9. Nxd4 {[%emt 0:00:35]} Be7 {[%emt 0:05:00]} 10. f3 {[%emt 0:02:12]} Nc5 {[%emt 0:01:30]} 11. Be3 {[%emt 0:01:31]} O-O {[%emt 0:00:28]} 12. Nb3 {[%emt 0:04:59]} Ne6 {[%emt 0:02:15]} 13. f4 {[%emt 0:01:27]} f5 {[%emt 0:00:16]} 14. Nc3 {[%emt 0:02:20]} h6 {[%emt 0:10:27]} 15. Na4 {[%emt 0:08:15]} Qb8 {[%emt 0:07:05]} 16. c4 {[%emt 0:15:22]} Qb4 {[%emt 0:02:41]} 17. cxd5 {[%emt 0:01:10]} cxd5 {[%emt 0:01:47]} 18. Nac5 {[%emt 0:03:19]} Nxc5 {[%emt 0:01:03]} 19. Nxc5 {[%emt 0:03:33]} Bc6 {[%emt 0:02:40]} 20. Qd4 {[%emt 0:02:48]} Rab8 {[%emt 0:05:44]} 21. b3 {[%emt 0:07:20]} Rfc8 {[%emt 0:05:14]} 22. Rfd1 {[%emt 0:01:06]} a5 {[%emt 0:01:53]} 23. Rac1 {[%emt 0:01:13]} Ba8 {[%emt 0:01:52]} 24. Na6 {[%emt 0:03:00]} Qxd4 {[%emt 0:00:11]} 25. Bxd4 {[%emt 0:00:15]} Rb7 {[%emt 0:00:58]} 26. Nc5 {[%emt 0:01:27]} Rb5 {[%emt 0:01:26]} 27. Ne6 {[%emt 0:02:23]} c5 {[%emt 0:05:07]} 28. a4 {[%emt 0:01:55]} Rxb3 {[%emt 0:03:25]} 29. Nxc5 {[%emt 0:00:35]} Rb4 {[%emt 0:00:58]} 30. Na6 {[%emt 0:10:28]} Rbc4 {[%emt 0:00:47]} 31. Be3 {[%emt 0:02:07]} Bb7 {[%emt 0:07:18]} 32. Rxc4 {[%emt 0:00:34]} Rxc4 {[%emt 0:00:08]} 33. Nb8 {[%emt 0:00:34]} Rxa4 {[%emt 0:00:42]} 34. Nd7 {[%emt 0:03:01]} Ra2 {[%emt 0:06:23]} 35. Rb1 {[%emt 0:04:50]} Bc6 {[%emt 0:00:52]} 36. e6 {[%emt 0:01:49]} Re2 {[%emt 0:03:16]} 37. Rb8+ {[%emt 0:02:10]} Kh7 {[%emt 0:00:10]} 38. Re8 {[%emt 0:02:21]} d4 {[%emt 0:01:56]} 39. Rxe7 {[%emt 0:00:43]} dxe3 {[%emt 0:00:09]} 40. Kf1 {[%emt 0:00:00]} Rf2+ {[%emt 0:00:00]} 41. Ke1 {[%emt 0:05:50]} Bb5 {[%emt 0:00:22]} 0-1

[Event "WSTCC-65 2020"]
[Site "Prague"]
[Date "2020.03.12"]
[Round "7.40"]
[White "Kristiansen, Erling"]
[Black "Hnat, Zdenek"]
[Result "1/2-1/2"]
[ECO "D02"]
[WhiteElo "2123"]
[BlackElo "1802"]
[Annotator "ChessBase"]
[PlyCount "72"]
[EventDate "2020.03.06"]
[EventType "team-tourn"]
[EventCountry "CZE"]
[SourceTitle "playchess.com"]
[Source "ChessBase"]
[SourceQuality "1"]
[TimeControl "40/5400+30:1800+30"]

1. d4 {[%emt 0:00:00]} d5 {[%emt 0:00:00]} 2. Nf3 {[%emt 0:00:00]} e6 {[%emt 0:00:42]} 3. c4 {[%emt 0:00:09]} c5 {[%emt 0:00:42]} 4. cxd5 {[%emt 0:00:14]} exd5 {[%emt 0:00:23]} 5. g3 {[%emt 0:00:27]} Nf6 {[%emt 0:00:59]} 6. Bg2 {[%emt 0:00:12]} Nc6 {[%emt 0:01:35]} 7. O-O {[%emt 0:00:15]} Be6 {[%emt 0:01:11]} 8. Nc3 {[%emt 0:00:26]} Be7 {[%emt 0:02:02]} 9. h3 {[%emt 0:02:25]} Qd7 {[%emt 0:03:28]} 10. Kh2 {[%emt 0:01:35]} O-O 11. Be3 b6 {[%emt 0:05:14]} 12. Rc1 {[%emt 0:04:59]} Rac8 {[%emt 0:01:38]} 13. b3 {[%emt 0:06:02]} Rfd8 {[%emt 0:03:40]} 14. Qd2 {[%emt 0:02:23]} Ne4 {[%emt 0:02:55]} 15. Qb2 {[%emt 0:00:04]} Bf6 {[%emt 0:01:16]} 16. Rfd1 cxd4 17. Nxd4 {[%emt 0:02:49]} Nxd4 {[%emt 0:08:21]} 18. Bxd4 {[%emt 0:00:05]} Bxd4 {[%emt 0:01:15]} 19. Rxd4 {[%emt 0:00:03]} Nxf2 {[%emt 0:03:12]} 20. e4 {[%emt 0:02:01]} Nxh3 {[%emt 0:01:19]} 21. Nxd5 {[%emt 0:00:06]} Kh8 {[%emt 0:02:30]} 22. Rxc8 {[%emt 0:00:17]} Qxc8 {[%emt 0:10:46]} 23. Bxh3 {[%emt 0:11:52]} Bxh3 {[%emt 0:01:41]} 24. Nxb6 {[%emt 0:00:02]} axb6 25. Rxd8+ {[%emt 0:00:05]} Qxd8 {[%emt 0:02:04]} 26. Kxh3 Qd3 {[%emt 0:02:53]} 27. Qc1 {[%emt 0:02:54]} g6 {[%emt 0:02:31]} 28. Qf4 {[%emt 0:02:02]} Kg7 {[%emt 0:00:57]} 29. e5 {[%emt 0:00:52]} Qd7+ {[%emt 0:02:12]} 30. Kh2 {[%emt 0:02:20]} Qc6 {[%emt 0:01:38]} 31. Qd4 {[%emt 0:06:38]} Qc2+ {[%emt 0:02:15]} 32. Kh3 {[%emt 0:00:06]} Qf5+ {[%emt 0:00:51]} 33. Kg2 {[%emt 0:00:19]} Qc2+ 34. Qf2 Qe4+ {[%emt 0:05:30]} 35. Kh2 {[%emt 0:00:42]} b5 {[%emt 0:03:40]} 36. Qf6+ {[%emt 0:06:39]} Kg8 1/2-1/2